Workbook

Sheet Instructivo
A1: CRITERIO DE PRIORIZACIÓN DE TRÁMITES ADMINISTRATIVOS
A2: Instructivo
A3: Consideraciones generales
A5: En las hojas “COSTO DE ADMINISTRACIÓN PÚBLICA”y “RESUMEN” para añadir más trámites y que apliquen las fórmulas, se deberá seleccionar la primera fila y copiarla una por cada trámite de la entidad
A7: Todas las hojas tienen columnas de color celeste, en las cuales NO deben ingresar valores ya que contienen fórmulas.
A8: Para la carga en GOB.EC. La institución debe recordar que el peso máximo del archivo es de 2 MB.
A9: Esquema de puntuación
A10: Para priorizar un trámite, se realizará un análisis de criterios básicos y adicionales basado en información que disponen las instituciones sujetas a esta norma técnica. Cada criterio será puntuado según los lineamientos presentes en esta norma.
A11: a) Demanda Anual
A12: Considerará el volumen o frecuencia de las solicitudes que ingresan al año a cada institución para la gestión de un trámite en particular.
A13: La identificación del volumen anual de los trámites se realizará a través de sus registros de transacciones y/o el número de visitas de consulta de información realizadas a través de páginas web institucionales.
A14: Para realizar el registro realice lo siguiente:
A15: 1.- Seleccione la hoja DEMANDA ANUAL
A16: 2.- Ingrese los trámites de la institución registrando el identificador y nombre en las columnas respectivas.
A17: 3.- Para cada trámite debe especificar en la columna DEMANDA ANUAL el volumen o frecuencia anual, de acuerdo a lo mencionado anteriormente.
A18: 4.- Una vez terminado el llenado solicitado presione el botón PUNTUACIÓN, se ordenara de menor a mayor.
A19: 5.- Usted visualizará el ordenamiento de los trámites ingresados de acuerdo al número de volumen o frecuencia anual.
A20: 6.- Así mismo, usted visualizará el puntaje obtenido en la columna PUNTUACIÓN de acuerdo al grupo obtenido por cada trámite de acuerdo al número de volumen o frecuencia anual cosiderando lo siguiente: ** Primer grupo (trámites con menor demanda no incluye los trámites con demanda 0 ) = 3 ** Segundo grupo (trámites con demanda intermedia) = 6 ** Tercer grupo (trámites con mayor demanda) = 10
A21: Cada vez que requiera actualizar el puntaje presionando el botón puntuación, debe verificar que la celda de la columna puntaje se encuentren vacías, es decir, se debe borrar cualquier valor de puntaje obtenido previamente.
A22: b) Volumen de quejas asociadas a un trámite:
A23: Considerará la cantidad de quejas recibidas en relación a un trámite durante un año. Estas quejas deberán estar documentadas en medios físicos y/o digitales.
A24: Para determinar la puntuación, se colocará en una tabla todos los trámites con sus correspondientes quejas ordenándose de menor a mayor. Se dividirá en 2 partes en los que cada grupo contenga la misma cantidad de trámites.
A25: Para realizar el registro realice lo siguiente:
A26: 1.- Seleccione la hoja VOLUMEN DE QUEJAS
A27: 2.- Ingrese los trámites de la institución registrando el identificador y nombre en las columnas respectivas. Si usted requiere de acuerdo al número de trámites copie filas adicionales que estén dentro del cuadro
A28: 3.- Para cada trámite debe especificar en la columna VOLUMEN QUEJAS el número de quejas anual, de acuerdo a lo mencionado anteriormente.
A29: 4.- Una vez terminado el llenado solicitado presione el botón PUNTUACIÓN.
A30: 5.- Usted visualizará el ordenamiento de los trámites ingresados de acuerdo al número de volumen o frecuencia anual.
A31: 6.- Así mismo, usted visualizará el puntaje obtenido en la columna PUNTUACIÓN de acuerdo al grupo obtenido por cada trámite de acuerdo al número de volumen o frecuencia anual cosiderando lo siguiente: La puntuación se basará en los siguientes grupos: ** Primer grupo (trámites con menor cantidad de quejas, no incluye los trámites con queja 0 ) = 4 ** Segundo grupo (trámites con mayor porcentaje de quejas) = 10
A32: El valor del volumen de quejas no debe ser superior al valor del volumen de la demana, no le permitirá registrar un valor.
A33: c) Costo para la administración pública:
A34: En cada trámite, basado en un caso estándar, se deberá estimar el costo incurrido en el costo de personal y recursos necesarios para su atención desde que el administrado entregó todos los requisitos hasta que la institución entregue el producto, respuesta o servicio requerido en el trámite. Se considerará:
A35: • Costo de personal:
A36: Costo del personal para atender el trámite, se excluyen actividades realizadas automáticamente o que dependen del administrado. El tiempo deberá considerar únicamente el tiempo efectivo de trabajo del personal, no debe considerar el tiempo de espera o de movimiento.
A37: • Costo de recursos:
A38: Se deberá considerar el costo directo en el que la institución debe incurrir para atender un trámite. Se debe considerar los insumos o materia prima necesaria u cualquier otro que la institución considere pertinente.
A39: Para realizar el registro realice lo siguiente:
A40: 1.- Seleccione la hoja COSTO ADMINISTRACIÓN PÚBLICA
A41: 2.- Ingrese los trámites de la institución registrando el identificador y nombre en las columnas respectivas. Si usted requiere de acuerdo al número de trámites copie filas adicionales que estén dentro del cuadro
A42: 3.- Para calcular el tiempo de las actividades, utilizar la hoja AUXILIAR COSTO ADMINISTRACIÓN donde deberá listar todas las actividades que realiza la institución en un caso estándar y asignar el tiempo mínimo que toma cada actvidad (en horas). El tiempo total de las actividades, deberá ingresar en la correspondiente celda de la hoja COSTO ADMINISTRACIÓN PÚBLICA
A43: 4.- En función de la información registrada en el paso 3, la matriz entregará el costo del personal
A44: 5.- Completar la columna "Costo recursos", en la cual ingresará el costo directo en el que incurre la institución para entregar el trámite. En este valor se considerarán los valores correspondientes a insumos y/o materia prima mínimos que se invierten por cada trámite (no se considera mano de obra)
A45: 6.- La columna "Costo para la adm. pública" mostrará el costto de este criterio para cada trámite
A46: 7,- Para que la fórmula funcione debe arrastrar hacia abajo al último de los támites ingresados, no copiar
A47: 7.- Una vez que disponga del Costo para la administración pública, presionar el botón "GENERAR".
A48: 8. Visualizar la hoja “RESUMEN DE COSTO AP” en la que va a encontrar copiada las celdas necesarias para el ordenamiento y puntuación de las mismas al presionar el botón “PUNTUACIÓN”
A50: d) Tiempo de respuesta:
A51: Considerará los tiempos que a las instituciones les toma dar respuesta a un trámite desde que reciben la solicitud del administrado hasta la finalización del mismo. Para la definición del tiempo se considerará un caso estándar.
A52: Para determinar la puntuación, se colocará en una tabla todos los trámites con el tiempo de respuesta, ordenándose de menor a mayor. Se dividirá en 4 grupos, en los que cada uno contenga la misma cantidad de trámites.
A53: Para realizar el registro realice lo siguiente:
A54: 1.- Seleccione la hoja TIEMPO DE RESPUESTA
A55: 2.- Ingrese los trámites de la institución registrando el identificador y nombre en las columnas respectivas. Si usted requiere de acuerdo al número de trámites copie filas adicionales que estén dentro del cuadro
A56: 3.- Para cada trámite debe especificar en la columna TIEMPO RESPUESTA el tiempo, de acuerdo a lo mencionado anteriormente.
A57: 4.- Una vez terminado el llenado solicitado presione el botón PUNTUACIÓN.
A58: 5.- Usted visualizará el ordenamiento de los trámites ingresados de acuerdo al número de volumen o frecuencia anual.
A59: 6.- Así mismo, usted visualizará el puntaje obtenido en la columna PUNTUACIÓN de acuerdo al grupo obtenido por cada trámite de acuerdo al número de volumen o frecuencia anual cosiderando lo siguiente: La puntuación considera lo siguiente: ** Primer grupo (menor o igual a 40 horas laboralres) = 0 ** Segundo grupo mayor 40 horas laboralres) = 30
A60: e) Canal de atención:
A61: Considerará los canales de atención a través de los cuales el administrado puede iniciar el trámite.
A62: Para realizar el registro realice lo siguiente:
A63: 1.- Seleccione la hoja CANAL ATENCIÓN
A64: 2.- Ingrese los trámites de la institución registrando el identificador y nombre en las columnas respectivas. Si usted requiere de acuerdo al número de trámites copie filas adicionales que estén dentro del cuadro
A65: 3.- Para cada trámite debe seleccionar el canal de atención del trámite en la columna CANAL ATENCIÓN, que pueden ser: El trámite se puede completar totalmente en línea: Se considera trámite totalmente en línea cuando el administrado no requiere realizar ninguna interacción presencial con la institución = 0 El trámite no se puede completar totalmente en línea: Se considera este caso, cuando el trámite incluye al menos una actividad, incluido mecanismos de pago, en la que el administrado deba acudir presencialmente a la institución, para la realización de dicho trámite. Los trámites presenciales se consideran dentro de esta categoría = 10
A66: 4.- De acuerdo a la selección usted obtendrá la puntuación del trámite que se visualizará en la columna PUNTUACIÓN.
A68: f) Resumen
A69: En esta hoja deberá consolidar todas las puntuaciones obtenidas para cada trámite en los criterios a) hasta e). Adicionalmente deberá analizar los criterios adicionales que dispone la norma técnica, para estos últimos solamente deberá seleccionar en la celda correspondiente y la matriz asignará la puntuación adicional. Los criterios que deberá considerar son: - NECESIDADES CIUDADANAS: Si la institución ha implementado mecanismos para identificar necesidades ciudadanas respecto al trámite, seleccionar "SI", caso contrario, seleccionar "NO" - SUSCEPTIBILIDAD A CORRUPCIÓN: Si la institución dispone de información documentada sobre presuntos actos de corrupción, seleccionar "SI", caso contrario, seleccionar "NO" - VOLUMEN DE DEVOLUCIONES: Si la institución posee documentación sobre devoluciones del trámite en una cantidad significativa, seleccionar "SI", caso contrario, seleccionar "NO" Para que funcione la lista depelgable debe arrastrar la lista y la puntuación hacia abajo al último de los támites ingresados, no copiar
A70: En la columna puntaje total se realizará la sumatoria de los valores de los criterios básicos y adicionales. Este valor deberá registrarse en la plataforma GOB.EC

Sheet DEMANDA ANUAL
A1: PRIORIZACIÓN DE TRÁMITES ADMINISTRATIVOS
A2: DEMANDA ANUAL
A4: IDENTIFICADOR | B4: TRÁMITE | C4: DEMANDA ANUAL | D4: PUNTAJE
A5: INEN-012-01-01 | B5: Actas de Sellamiento de Bebidas Alcohólicas | C5: 3 | D5: 3
A6: INEN-012-02-01 | B6: Autorización de Envasamiento de Bebidas Alcohólicas | C6: 9 | D6: 3
A7: INEN-013-01-01 | B7: Certificado de la gestión de micro, pequeñas, medianas empresas y organizaciones de economía popular y solidaria | C7: 266 | D7: 3
A8: INEN-011-01-01 | B8: Oficio de reconocimiento de informes de emisiones de gases contaminantes de automotores | C8: 344 | D8: 6
A9: INEN-008-01-01 | B9: Certificado de conformidad con Sello de Calidad INEN | C9: 378 | D9: 6
A10: INEN-004-01-01 | B10: Certificado de Calibración In situ | C10: 572 | D10: 6
A11: INEN-010-01-01 | B11: Informe de Ensayo físicos, mecánico y analíticos | C11: 584 | D11: 10
A12: INEN-001-02-01 | B12: Norma Técnica Internacional o Regional (venta de normas) | C12: 1125 | D12: 10
A13: INEN-009-01-01 | B13: Certificado de Inspección de etiquetado | C13: 1570 | D13: 10
A14: INEN-005-01-01 | B14: Certificado de Calibración en Laboratorio | C14: 2509 | D14: 10
A15: INEN-003-01-01 | B15: Certificado de Reconocimiento INEN a través de la VUE | C15: 29071 | D15: 10

Sheet VOLUMEN DE QUEJAS
A1: PRIORIZACIÓN DE TRÁMITES ADMINISTRATIVOS
A2: VOLUMEN DE QUEJAS
A4: IDENTIFICADOR | B4: TRÁMITE | C4: VOLUMEN DEMANDA | D4: VOLUMEN DE QUEJAS | E4: PORCENTAJE | F4: PUNTUACIÓN
A5: INEN-012-01-01 | B5: Actas de Sellamiento de Bebidas Alcohólicas | C5: 3 | D5: 0 | E5: 0 | F5: 0
A6: INEN-012-02-01 | B6: Autorización de Envasamiento de Bebidas Alcohólicas | C6: 9 | D6: 1 | E6: 11.11111111 | F6: 10
A7: INEN-013-01-01 | B7: Certificado de la gestión de micro, pequeñas, medianas empresas y organizaciones de economía popular y solidaria | C7: 266 | D7: 0 | E7: 0 | F7: 0
A8: INEN-011-01-01 | B8: Oficio de reconocimiento de informes de emisiones de gases contaminantes de automotores | C8: 344 | D8: 0 | E8: 0 | F8: 0
A9: INEN-008-01-01 | B9: Certificado de conformidad con Sello de Calidad INEN | C9: 378 | D9: 1 | E9: 0.2645502646 | F9: 4
A10: INEN-004-01-01 | B10: Certificado de Calibración In situ | C10: 572 | D10: 0 | E10: 0 | F10: 0
A11: INEN-010-01-01 | B11: Informe de Ensayo físicos, mecánico y analíticos | C11: 584 | D11: 0 | E11: 0 | F11: 0
A12: INEN-001-02-01 | B12: Norma Técnica Internacional o Regional (venta de normas) | C12: 1125 | D12: 0 | E12: 0 | F12: 0
A13: INEN-009-01-01 | B13: Certificado de Inspección de etiquetado | C13: 1570 | D13: 0 | E13: 0 | F13: 0
A14: INEN-005-01-01 | B14: Certificado de Calibración en Laboratorio | C14: 2509 | D14: 0 | E14: 0 | F14: 0
A15: INEN-003-01-01 | B15: Certificado de Reconocimiento INEN a través de la VUE | C15: 29071 | D15: 1 | E15: 0.00343985415 | F15: 4

Sheet COSTO ADMINISTRACIÓN PÚBLICA
A1: PRIORIZACIÓN DE TRÁMITES ADMINISTRATIVOS
A2: COSTOS PARA LA ADMINISTRACIÓN PÚBLICA
A4: IDENTIFICADOR | B4: TRÁMITE | C4: INSUMOS PARA COSTO | F4: COSTO PARA LA ADM. PÚBLICA | H4: SBU | I4: 400
C5: TIEMPO (HORAS) | D5: COSTO PERSONAL | E5: COSTO RECURSOS
A6: INEN-012-01-01 | B6: Actas de Sellamiento de Bebidas Alcohólicas | C6: 1.016666667 | D6: =C6*$I$4/160 -> 2.541666667 | E6: 1 | F6: =D6+E6 -> 3.541666667
A7: INEN-012-02-01 | B7: Autorización de Envasamiento de Bebidas Alcohólicas | C7: 1 | D7: =C7*$I$4/160 -> 2.5 | E7: 0.5 | F7: =D7+E7 -> 3
A8: INEN-013-01-01 | B8: Certificado de la gestión de micro, pequeñas, medianas empresas y organizaciones de economía popular y solidaria | C8: 56 | D8: 140 | E8: 60.31 | F8: 200.31
A9: INEN-011-01-01 | B9: Oficio de reconocimiento de informes de emisiones de gases contaminantes de automotores | C9: 56 | D9: 140 | E9: 60.31 | F9: 200.31
A10: INEN-008-01-01 | B10: Certificado de conformidad con Sello de Calidad INEN | C10: 48 | D10: 120 | E10: 8 | F10: 128
A11: INEN-004-01-01 | B11: Certificado de Calibración In situ | C11: 24.5 | D11: =C11*$I$4/160 -> 61.25 | E11: 5 | F11: =D11+E11 -> 66.25
A12: INEN-010-01-01 | B12: Informe de Ensayo físicos, mecánico y analíticos | C12: 80.5 | D12: 201.25 | E12: 8 | F12: 209.25
A13: INEN-001-02-01 | B13: Norma Técnica Internacional o Regional (venta de normas) | C13: 24.5 | D13: 61.25 | E13: 3 | F13: 64.25
A14: INEN-009-01-01 | B14: Certificado de Inspección de etiquetado | C14: 30.75 | D14: 76.875 | E14: 4 | F14: 80.875
A15: INEN-005-01-01 | B15: Certificado de Calibración en Laboratorio | C15: 30.75 | D15: 76.875 | E15: 4 | F15: 80.875
A16: INEN-003-01-01 | B16: Certificado de Reconocimiento INEN a través de la VUE | C16: 36 | D16: 90 | E16: 5 | F16: 95

Sheet RESUMEN DE COSTOS AP
A1: PRIORIZACIÓN DE TRÁMITES ADMINISTRATIVOS
A2: COSTOS PARA LA ADMINISTRACIÓN PÚBLICA
A4: IDENTIFICADOR | B4: TRÁMITE | C4: COSTO PARA LA ADM. PÚBLICA | D4: PUNTUACIÓN
A5: INEN-012-02-01 | B5: Autorización de Envasamiento de Bebidas Alcohólicas | C5: 3 | D5: 5
A6: INEN-012-01-01 | B6: Actas de Sellamiento de Bebidas Alcohólicas | C6: 3.541666667 | D6: 5
A7: INEN-001-02-01 | B7: Norma Técnica Internacional o Regional (venta de normas) | C7: 64.25 | D7: 5
A8: INEN-004-01-01 | B8: Certificado de Calibración In situ | C8: 66.25 | D8: 10
A9: INEN-005-01-01 | B9: Certificado de Calibración en Laboratorio | C9: 80.875 | D9: 10
A10: INEN-009-01-01 | B10: Certificado de Inspección de etiquetado | C10: 80.875 | D10: 10
A11: INEN-003-01-01 | B11: Certificado de Reconocimiento INEN a través de la VUE | C11: 95 | D11: 20
A12: INEN-008-01-01 | B12: Certificado de conformidad con Sello de Calidad INEN | C12: 128 | D12: 20
A13: INEN-013-01-01 | B13: Certificado de la gestión de micro, pequeñas, medianas empresas y organizaciones de economía popular y solidaria | C13: 200.31 | D13: 20
A14: INEN-011-01-01 | B14: Oficio de reconocimiento de informes de emisiones de gases contaminantes de automotores | C14: 200.31 | D14: 20
A15: INEN-010-01-01 | B15: Informe de Ensayo físicos, mecánico y analíticos | C15: 209.25 | D15: 20

Sheet AUXILIAR COSTO ADMINISTRACIÓN
A2: TRÁMITE: | B2: ='COSTO ADMINISTRACIÓN PÚBLICA'!B6 -> Actas de Sellamiento de Bebidas Alcohólicas
A3: NO. | B3: ACTIVIDAD | C3: TIEMPO (HORAS)
A4: 1 | B4: Revisión de solicitud de cotización | C4: =5/60 -> 0.08333333333
A5: 2 | B5: Revisión de disponibilidad de normativa | C5: =10/60 -> 0.1666666667
A6: 3 | B6: Elaboración de cotización | C6: =10/60 -> 0.1666666667
A7: 4 | B7: Envío de cotización | C7: =3/60 -> 0.05
A8: 5 | B8: Registro de la factura en el sistema de facturación | C8: =10/60 -> 0.1666666667
A9: 6 | B9: Registro de marca de agua en la norma | C9: =20/60 -> 0.3333333333
A10: 7 | B10: Envío de la norma | C10: =3/60 -> 0.05
B11: SUMATORIA ACTIVIDADES | C11: =SUM(C4:C10) -> 1.016666667
C13: Valor en $
B14: Costo directo estimado (impresión / CD) | C14: 1
A17: TRÁMITE: | B17: ='COSTO ADMINISTRACIÓN PÚBLICA'!B7 -> Autorización de Envasamiento de Bebidas Alcohólicas
A18: NO. | B18: ACTIVIDAD | C18: TIEMPO (HORAS)
A19: 1 | B19: Revisión documental | C19: 1
B20: SUMATORIA ACTIVIDADES | C20: =SUM(C19:C19) -> 1
C22: Valor en $
B23: Costo directo estimado | C23: 0.5
A26: TRÁMITE: | B26: ='COSTO ADMINISTRACIÓN PÚBLICA'!B8 -> Certificado de la gestión de micro, pequeñas, medianas empresas y organizaciones de economía popular y solidaria
A27: NO. | B27: ACTIVIDAD | C27: TIEMPO (HORAS)
A28: 1 | B28: Fase inicial | C28: 8
A29: 2 | B29: Validación del pago del servicio de calibración | C29: 8
A30: 3 | B30: Tiempo de calibración y emisión del certificado | C30: 40
B31: SUMATORIA ACTIVIDADES | C31: =SUM(C28:C30) -> 56
C33: Valor en $
B34: Costo directo estimado | C34: 60.31
A37: TRÁMITE: | B37: ='COSTO ADMINISTRACIÓN PÚBLICA'!B9 -> Oficio de reconocimiento de informes de emisiones de gases contaminantes de automotores
A38: NO. | B38: ACTIVIDAD | C38: TIEMPO (HORAS)
A39: 1 | B39: Fase inicial | C39: 8
A40: 2 | B40: Validación del pago del servicio de calibración | C40: 8
A41: 3 | B41: Tiempo de calibración y emisión del certificado | C41: 40
B42: SUMATORIA ACTIVIDADES | C42: =SUM(C39:C41) -> 56
C44: Valor en $
B45: Costo directo estimado | C45: 60.31
A48: TRÁMITE: | B48: ='COSTO ADMINISTRACIÓN PÚBLICA'!B10 -> Certificado de conformidad con Sello de Calidad INEN
A49: NO. | B49: ACTIVIDAD | C49: TIEMPO (HORAS)
A50: 1 | B50: Fase inicial | C50: 8
A51: 2 | B51: Evaluación del propducto (auditoría) | C51: 24
A52: 3 | B52: Evaluación del sistema de gestión | C52: 16
B53: SUMATORIA ACTIVIDADES | C53: =SUM(C50:C52) -> 48
C55: Valor en $
B56: Costo directo estimado | C56: 8
A59: TRÁMITE: | B59: ='COSTO ADMINISTRACIÓN PÚBLICA'!B11 -> Certificado de Calibración In situ
A60: NO. | B60: ACTIVIDAD | C60: TIEMPO (HORAS)
A61: 1 | B61: Revisión de solicitud | C61: =5/60 -> 0.08333333333
A62: 2 | B62: Emisión de proforma | C62: =10/60 -> 0.1666666667
A63: 3 | B63: Revisión de etiqueta | C63: 24
A64: 4 | B64: Emisión del certificado | C64: =15/60 -> 0.25
B65: SUMATORIA ACTIVIDADES | C65: =SUM(C61:C64) -> 24.5
C67: Valor en $
B68: Costo directo estimado | C68: 5
A71: TRÁMITE: | B71: ='COSTO ADMINISTRACIÓN PÚBLICA'!B12 -> Informe de Ensayo físicos, mecánico y analíticos
A72: NO. | B72: ACTIVIDAD | C72: TIEMPO (HORAS)
A73: 1 | B73: Revisión de solicitud | C73: =5/60 -> 0.08333333333
A74: 2 | B74: Emisión de proforma | C74: =10/60 -> 0.1666666667
A75: 3 | B75: Realización del ensayo | C75: 80
A76: 4 | B76: Emisión del informe | C76: 0.25
B77: SUMATORIA ACTIVIDADES | C77: =SUM(C73:C76) -> 80.5
C79: Valor en $
B80: Costo directo estimado | C80: 8
A83: TRÁMITE: | B83: ='COSTO ADMINISTRACIÓN PÚBLICA'!B13 -> Norma Técnica Internacional o Regional (venta de normas)
A84: NO. | B84: ACTIVIDAD | C84: TIEMPO (HORAS)
A85: 1 | B85: Revisión de solicitud | C85: =5/60 -> 0.08333333333
A86: 2 | B86: Emisión de proforma | C86: =10/60 -> 0.1666666667
A87: 3 | B87: Revisión de informes | C87: 24
A88: 4 | B88: Emisión del oficio | C88: 0.25
B89: SUMATORIA ACTIVIDADES | C89: =SUM(C85:C88) -> 24.5
C91: Valor en $
B92: Costo directo estimado | C92: 3
A95: TRÁMITE: | B95: ='COSTO ADMINISTRACIÓN PÚBLICA'!B14 -> Certificado de Inspección de etiquetado
A96: NO. | B96: ACTIVIDAD | C96: TIEMPO (HORAS)
A97: 1 | B97: Revisión de solicitud | C97: =5/60 -> 0.08333333333
A98: 2 | B98: Emisión de proforma | C98: =10/60 -> 0.1666666667
A99: 3 | B99: Revisión de las características de sellamiento | C99: 30
A100: 4 | B100: Emisión del acta | C100: 0.5
B101: SUMATORIA ACTIVIDADES | C101: =SUM(C97:C100) -> 30.75
C103: Valor en $
B104: Costo directo estimado | C104: 4
A107: TRÁMITE: | B107: ='COSTO ADMINISTRACIÓN PÚBLICA'!B15 -> Certificado de Calibración en Laboratorio
A108: NO. | B108: ACTIVIDAD | C108: TIEMPO (HORAS)
A109: 1 | B109: Revisión de solicitud | C109: =5/60 -> 0.08333333333
A110: 2 | B110: Emisión de proforma | C110: =10/60 -> 0.1666666667
A111: 3 | B111: Revisión de las características de envasamiento | C111: 30
A112: 4 | B112: Emisión de la autorización | C112: 0.5
B113: SUMATORIA ACTIVIDADES | C113: =SUM(C109:C112) -> 30.75
C115: Valor en $
B116: Costo directo estimado | C116: 4
A119: TRÁMITE: | B119: ='COSTO ADMINISTRACIÓN PÚBLICA'!B16 -> Certificado de Reconocimiento INEN a través de la VUE
A120: NO. | B120: ACTIVIDAD | C120: TIEMPO (HORAS)
A121: 1 | B121: Fase inicial | C121: 8
A122: 2 | B122: Evaluación del propducto (auditoría) | C122: 14
A123: 3 | B123: Evaluación del sistema de gestión | C123: 14
B124: SUMATORIA ACTIVIDADES | C124: =SUM(C121:C123) -> 36
C126: Valor en $
B127: Costo directo estimado | C127: 5

Sheet TIEMPO DE RESPUESTA
A1: PRIORIZACIÓN DE TRÁMITES ADMINISTRATIVOS
A2: TIEMPO DE RESPUESTA
A4: IDENTIFICADOR | B4: TRÁMITE | C4: TIEMPO RESPUESTA (horas laborables) | D4: PUNTUACIÓN
A5: INEN-012-01-01 | B5: Actas de Sellamiento de Bebidas Alcohólicas | C5: 50 | D5: 30
A6: INEN-012-02-01 | B6: Autorización de Envasamiento de Bebidas Alcohólicas | C6: 50 | D6: 30
A7: INEN-013-01-01 | B7: Certificado de la gestión de micro, pequeñas, medianas empresas y organizaciones de economía popular y solidaria | C7: 32 | D7: 0
A8: INEN-011-01-01 | B8: Oficio de reconocimiento de informes de emisiones de gases contaminantes de automotores | C8: 40 | D8: 0
A9: INEN-008-01-01 | B9: Certificado de conformidad con Sello de Calidad INEN | C9: 144 | D9: 30
A10: INEN-004-01-01 | B10: Certificado de Calibración In situ | C10: 144 | D10: 30
A11: INEN-010-01-01 | B11: Informe de Ensayo físicos, mecánico y analíticos | C11: 40 | D11: 0
A12: INEN-001-02-01 | B12: Norma Técnica Internacional o Regional (venta de normas) | C12: 16 | D12: 0
A13: INEN-009-01-01 | B13: Certificado de Inspección de etiquetado | C13: 40 | D13: 0
A14: INEN-005-01-01 | B14: Certificado de Calibración en Laboratorio | C14: 176 | D14: 30
A15: INEN-003-01-01 | B15: Certificado de Reconocimiento INEN a través de la VUE | C15: 18 | D15: 0

Sheet CANAL ATENCIÓN
A1: PRIORIZACIÓN DE TRÁMITES ADMINISTRATIVOS
A2: CANAL DE ATENCIÓN
I3: Totalmente en Línea | L3: 0
A4: IDENTIFICADOR | B4: TRÁMITE | C4: CANAL ATENCIÓN | D4: PUNTUACIÓN | I4: No se completa totalmente en línea. | L4: 10
A5: INEN-012-01-01 | B5: Actas de Sellamiento de Bebidas Alcohólicas | C5: No se completa totalmente en línea. | D5: =IF(ISBLANK(C5),"",IF(C5="Totalmente en línea",0,IF(C5="Inicia en línea",6,10))) -> 10
A6: INEN-012-02-01 | B6: Autorización de Envasamiento de Bebidas Alcohólicas | C6: No se completa totalmente en línea. | D6: =IF(ISBLANK(C6),"",IF(C6="Totalmente en línea",0,IF(C6="Inicia en línea",6,10))) -> 10
A7: INEN-013-01-01 | B7: Certificado de la gestión de micro, pequeñas, medianas empresas y organizaciones de economía popular y solidaria | C7: Totalmente en Línea | D7: 0
A8: INEN-011-01-01 | B8: Oficio de reconocimiento de informes de emisiones de gases contaminantes de automotores | C8: No se completa totalmente en línea. | D8: 10
A9: INEN-008-01-01 | B9: Certificado de conformidad con Sello de Calidad INEN | C9: Totalmente en Línea | D9: 0
A10: INEN-004-01-01 | B10: Certificado de Calibración In situ | C10: Totalmente en Línea | D10: 0
A11: INEN-010-01-01 | B11: Informe de Ensayo físicos, mecánico y analíticos | C11: Totalmente en Línea | D11: 0
A12: INEN-001-02-01 | B12: Norma Técnica Internacional o Regional (venta de normas) | C12: Totalmente en Línea | D12: 0
A13: INEN-009-01-01 | B13: Certificado de Inspección de etiquetado | C13: Totalmente en Línea | D13: 0
A14: INEN-005-01-01 | B14: Certificado de Calibración en Laboratorio | C14: No se completa totalmente en línea. | D14: 10
A15: INEN-003-01-01 | B15: Certificado de Reconocimiento INEN a través de la VUE | C15: Totalmente en Línea | D15: 0

Sheet RESUMEN
C1: BÁSICOS | H1: ADICIONALES
A2: ID trámite | B2: Nombre del trámite | C2: Demanda | D2: Quejas | E2: Costo para administración | F2: Tiempo de respuesta | G2: Canal de atención | H2: Necesidades ciudadanas | J2: Susceptibilidad a corrupción | L2: Volumen de devoluciones | N2: PUNTAJE TOTAL
H3: Criterio | I3: Puntuación | J3: Criterio | K3: Puntuación | L3: Criterio | M3: Puntuación | U3: demanda | V3: 0 | W3: 3 | X3: 6 | Y3: 10
A4: INEN-001-02-01 | B4: Norma Técnica Internacional o Regional (venta de normas) | C4: 10 | D4: 0 | E4: 5 | F4: 0 | G4: 0 | H4: NO | I4: =IF(H4="SI",5,0) -> 0 | J4: NO | K4: =IF(J4="SI",10,0) -> 0 | L4: NO | M4: =IF(L4="SI",5,0) -> 0 | N4: =SUM(C4:G4,I4,K4,M4) -> 15 | U4: quejas | V4: 0 | W4: 4 | X4: 10
A5: INEN-003-01-01 | B5: Certificado de Reconocimiento INEN a través de la VUE | C5: 10 | D5: 4 | E5: 20 | F5: 0 | G5: 0 | H5: NO | I5: 0 | J5: NO | K5: 0 | L5: NO | M5: 0 | N5: 34 | U5: cpa | V5: 5 | W5: 10 | X5: 20
A6: INEN-004-01-01 | B6: Certificado de Calibración In situ | C6: 6 | D6: 0 | E6: 10 | F6: 30 | G6: 0 | H6: NO | I6: 0 | J6: NO | K6: 0 | L6: NO | M6: 0 | N6: 46 | U6: tr | V6: 0 | W6: 30
A7: INEN-005-01-01 | B7: Certificado de Calibración en Laboratorio | C7: 10 | D7: 0 | E7: 10 | F7: 30 | G7: 10 | H7: NO | I7: 0 | J7: NO | K7: 0 | L7: NO | M7: 0 | N7: 60 | U7: ca | V7: 0 | W7: 10
A8: INEN-008-01-01 | B8: Certificado de conformidad con Sello de Calidad INEN | C8: 6 | D8: 4 | E8: 20 | F8: 30 | G8: 0 | H8: NO | I8: 0 | J8: NO | K8: 0 | L8: NO | M8: 0 | N8: 60 | V8: SI | W8: NO
A9: INEN-009-01-01 | B9: Certificado de Inspección de etiquetado | C9: 10 | D9: 0 | E9: 10 | F9: 0 | G9: 0 | H9: NO | I9: 0 | J9: NO | K9: 0 | L9: NO | M9: 0 | N9: 20
A10: INEN-010-01-01 | B10: Informe de Ensayo físicos, mecánico y analíticos | C10: 10 | D10: 0 | E10: 20 | F10: 0 | G10: 0 | H10: NO | I10: 0 | J10: NO | K10: 0 | L10: NO | M10: 0 | N10: 30
A11: INEN-011-01-01 | B11: Oficio de reconocimiento de informes de emisiones de gases contaminantes de automotores | C11: 6 | D11: 0 | E11: 20 | F11: 0 | G11: 10 | H11: NO | I11: 0 | J11: NO | K11: 0 | L11: NO | M11: 0 | N11: 36
A12: INEN-012-01-01 | B12: Actas de Sellamiento de Bebidas Alcohólicas | C12: 3 | D12: 0 | E12: 5 | F12: 30 | G12: 10 | H12: NO | I12: 0 | J12: NO | K12: 0 | L12: NO | M12: 0 | N12: 48
A13: INEN-012-02-01 | B13: Autorización de Envasamiento de Bebidas Alcohólicas | C13: 3 | D13: 10 | E13: 5 | F13: 30 | G13: 10 | H13: NO | I13: 0 | J13: NO | K13: 0 | L13: NO | M13: 0 | N13: 58
A14: INEN-013-01-01 | B14: Certificado de la gestión de micro, pequeñas, medianas empresas y organizaciones de economía popular y solidaria | C14: 3 | D14: 0 | E14: 20 | F14: 0 | G14: 0 | H14: NO | I14: 0 | J14: NO | K14: 0 | L14: NO | M14: 0 | N14: 23
